fUSD/lending_fUSD_20250620
["ID","MTS","AMOUNT","RATE_DAILY","PERIOD"]
[366747802,1750431032665,-876.54991811,0.00025383,13]
[366747803,1750431032677,-168.0,0.00025421,2]
[366747804,1750431032690,-168.0,0.00025501,2]
[366747805,1750431032704,-160.12,0.00025752,2]
[366747806,1750431032717,-260.0,0.00025759,2]
[366747808,1750431032731,-202.0,0.00025777,4]
[366747811,1750431032747,-160.12,0.00025795,2]
[366747813,1750431032762,-250.0,0.00025803,2]
[366747815,1750431032774,-1200.0,0.00025818,2]
[366747817,1750431032786,-1957.856,0.00025819,2]
[366747820,1750431032797,-300.0,0.00025834,2]
[366747822,1750431032810,-1000.0,0.00025835,2]
[366747824,1750431032823,-160.12,0.00025838,2]
[366747827,1750431032837,-876.54991811,0.00025866,14]
[366747829,1750431032851,-2030.296672,0.00025874,2]
[366747831,1750431032865,-160.12,0.00025881,2]
[366747834,1750431032877,-1875.0,0.00025887,2]
[366747836,1750431032888,-432.97727465,0.00025929,2]
[366747838,1750431032900,-183.0,0.00025941,2]
[366747840,1750431032911,-1055.0,0.00025971,2]
[366747842,1750431032926,-2934.81,0.00025972,2]
[366747843,1750431032951,-290.0,0.00026,7]
[366747844,1750431032964,-600.0,0.0002601,4]
[366747845,1750431032979,-300.0,0.0002601,2]
[366747846,1750431033005,-250.0,0.0002601,2]
[366747847,1750431033024,-156.49,0.00026027,2]
[366747848,1750431033041,-3532.38862185,0.00026092,5]
[366747849,1750431033057,-28536.95,0.000261,2]
[366747850,1750431033074,-442.0,0.00026135,7]
[366747851,1750431033090,-164.04,0.00026143,2]
[366747852,1750431033107,-600.0,0.00026144,4]
[366747853,1750431033124,-300.0,0.00026144,2]
[366747854,1750431033138,-500.0,0.0002615,2]
[366747855,1750431033153,-500.0,0.0002615,2]
[366747856,1750431033168,-500.0,0.00026167,2]
[366747857,1750431033184,-500.0,0.00026173,2]
[366747858,1750431033200,-151.0,0.00026184,2]
[366747860,1750431033215,-151.0,0.00026184,2]
[366747861,1750431033229,-151.0,0.00026184,2]
[366747862,1750431033243,-151.0,0.00026184,2]
[366747863,1750431033257,-151.0,0.00026184,2]
[366747864,1750431033271,-225.0,0.00026184,2]
[366747865,1750431033285,-6554.25084178,0.000262,2]
[366747866,1750431033304,-21982.69915822,0.000262,2]
[366747867,1750431033317,-11182.51980717,0.000262,2]
[366747868,1750431033332,-1042.01624572,0.000262,2]
[366747874,1750431037766,-5007.86443589,0.000262,2]
[366747875,1750431037881,-11304.54951122,0.000262,2]
[366747876,1750431037891,-213.84604712,0.00026248,8]
[366747877,1750431037901,-876.54991811,0.00026348,14]
[366747878,1750431037911,-834.11677829,0.00026533,2]
[366747879,1750431037921,-441.0,0.00026572,7]
[366747880,1750431037931,-4299.36228034,0.00026616,2]
[366747881,1750431037942,-547.98701072,0.00026616,10]
[366747882,1750431037954,-168.0,0.0002662,7]
[366747883,1750431037964,-168.0,0.00026638,2]
[366747884,1750431037974,-168.0,0.00026644,2]
[366747885,1750431037983,-441.0,0.00026673,2]
[366747886,1750431037993,-503.8733946,0.00026698,2]
[366747887,1750431038005,-1000.0,0.00026698,2]
[366747888,1750431038015,-900.0,0.000267,9]
[366747889,1750431038025,-776.56525265,0.00026707,2]
[366747890,1750431038036,-211.18349935,0.00026714,2]
[366747891,1750431038046,-419.89933494,0.00026715,2]
[366747892,1750431038056,-175.74998675,0.00026715,2]
[366747893,1750431038065,-500.0,0.00026715,2]
[366747894,1750431038075,-500.0,0.00026715,2]
[366747895,1750431038085,-198.73555131,0.00026715,2]
[366747896,1750431038095,-156.73329371,0.00026715,2]
[366747897,1750431038104,-500.0,0.00026715,2]
[366747898,1750431038114,-500.0,0.00026715,2]
[366747899,1750431038124,-500.0,0.00026715,2]
[366747900,1750431038134,-500.0,0.00026715,2]
[366747901,1750431038144,-500.0,0.00026715,2]
[366747902,1750431038153,-500.0,0.00026715,2]
[366747903,1750431038163,-500.0,0.00026715,2]
[366747904,1750431038173,-295.03790871,0.00026715,2]
[366747905,1750431038183,-500.0,0.00026715,2]
[366747906,1750431038193,-500.0,0.00026715,2]
[366747907,1750431038204,-500.0,0.00026715,2]
[366747908,1750431038215,-500.0,0.00026715,2]
[366747909,1750431038225,-500.0,0.00026715,2]
[366747910,1750431038236,-500.0,0.00026715,2]
[366747911,1750431038247,-500.0,0.00026715,2]
[366747912,1750431038257,-500.0,0.00026715,2]
[366747913,1750431038266,-490.0,0.00026715,4]
[366747914,1750431038277,-490.0,0.00026715,4]
[366747915,1750431038287,-490.0,0.00026715,4]
[366747917,1750431038296,-490.0,0.00026715,4]
[366747919,1750431038306,-490.0,0.00026715,4]
[366747921,1750431038316,-490.0,0.00026715,4]
[366747923,1750431038326,-490.0,0.00026715,4]
[366747925,1750431038336,-490.0,0.00026715,4]
[366747927,1750431038346,-755.68,0.00026715,4]
[366747928,1750431038355,-490.0,0.00026715,4]
[366747931,1750431038366,-490.0,0.00026715,4]
[366747932,1750431038375,-490.0,0.00026715,4]
[366747934,1750431038385,-490.0,0.00026715,4]
[366747936,1750431038395,-490.0,0.00026715,4]
[366747938,1750431038405,-490.0,0.00026715,4]
[366747940,1750431038416,-490.0,0.00026715,4]
[366747942,1750431038426,-490.0,0.00026715,4]
[366747944,1750431038436,-490.0,0.00026715,4]
[366747946,1750431038446,-490.0,0.00026715,4]
[366747948,1750431038459,-490.0,0.00026715,4]
[366747951,1750431038469,-490.0,0.00026715,4]
[366747953,1750431038480,-490.0,0.00026715,4]
[366747955,1750431038489,-490.0,0.00026715,4]
[366747957,1750431038500,-490.0,0.00026715,4]
[366747959,1750431038510,-490.0,0.00026715,4]
[366747961,1750431038521,-939.31,0.00026715,4]
[366747963,1750431038532,-243.39052721,0.00026715,4]
[366747965,1750431038542,-1611.69,0.00026715,4]
[366747967,1750431038552,-672.38137733,0.00026715,4]
[366747969,1750431038571,-204.26862267,0.00026715,4]
[366747971,1750431038580,-490.0,0.00026715,4]
[366747973,1750431038590,-490.0,0.00026715,4]
[366747975,1750431038600,-490.0,0.00026715,4]
[366747977,1750431038610,-471.49370653,0.00026715,4]
[366747979,1750431038623,-18.50629347,0.00026715,4]
[366747981,1750431038634,-490.0,0.00026715,4]
[366747983,1750431038644,-1796.62,0.00026715,4]
[366747985,1750431038662,-490.0,0.00026715,4]
[366747987,1750431038673,-490.0,0.00026715,4]
[366747989,1750431038683,-490.0,0.00026715,4]
[366747991,1750431038692,-490.0,0.00026715,4]
[366747993,1750431038704,-490.0,0.00026715,4]
[366747995,1750431038714,-323.95749231,0.00026715,4]
[366747998,1750431038727,-166.04250769,0.00026715,4]
[366748000,1750431038736,-490.0,0.00026715,2]
[366748002,1750431038746,-490.0,0.00026715,4]
[366748004,1750431038755,-490.0,0.00026715,4]
[366748005,1750431038766,-488.60180344,0.00026715,4]
[366748008,1750431038778,-1.39819656,0.00026715,4]
[366748010,1750431038788,-490.0,0.00026715,4]
[366748012,1750431038798,-578.29,0.00026715,4]
[366748014,1750431038808,-490.0,0.00026715,4]
[366748016,1750431038818,-490.0,0.00026715,2]
[366748018,1750431038828,-490.0,0.00026715,4]
[366748020,1750431038838,-490.0,0.00026715,4]
[366748022,1750431038847,-490.0,0.00026715,4]
[366748024,1750431038857,-490.0,0.00026715,4]
[366748026,1750431038866,-1570.398123,0.00026715,4]
[366748028,1750431038876,-2515.41085235,0.00026715,4]
[366748030,1750431038888,-140.23914765,0.00026715,4]
[366748032,1750431038898,-159.469271,0.00026715,4]
[366748034,1750431038908,-490.0,0.00026715,4]
[366748036,1750431038918,-152.3464,0.00026715,4]
[366748038,1750431038928,-490.0,0.00026715,4]
[366748040,1750431038938,-13730.3457,0.00026716,2]
[366748042,1750431038948,-85193.3557,0.00026716,2]
[366748044,1750431038960,-1000.0,0.00026716,2]
[366748046,1750431038970,-7000.0,0.0002672,2]
[366748048,1750431038979,-713.301,0.00026723,14]
[366748049,1750431038989,-168.0,0.00026735,2]
[366748052,1750431039000,-542.01650606,0.00026755,2]
[366748054,1750431039009,-200.0,0.00026769,2]
[366748056,1750431039020,-776.56525265,0.00026798,2]
[366748058,1750431039030,-706.29,0.000268,2]
[366748059,1750431039039,-1900.0,0.000268,9]
[366748061,1750431039049,-490.0,0.00026804,4]
[366748063,1750431039059,-490.0,0.00026804,4]
[366748065,1750431039070,-490.0,0.00026804,4]
[366748068,1750431039080,-490.0,0.00026804,4]
[366748069,1750431039090,-490.0,0.00026804,4]
[366748071,1750431039099,-490.0,0.00026804,4]
[366748073,1750431039109,-490.0,0.00026804,4]
[366748075,1750431039119,-598.65136984,0.00026804,4]
[366748077,1750431039129,-490.0,0.00026804,4]
[366748079,1750431039139,-490.0,0.00026804,4]
[366748082,1750431039150,-490.0,0.00026804,4]
[366748083,1750431039160,-490.0,0.00026804,4]
[366748085,1750431039170,-490.0,0.00026804,4]
[366748087,1750431039180,-490.0,0.00026804,4]
[366748089,1750431039191,-490.0,0.00026804,4]
[366748092,1750431039202,-490.0,0.00026804,4]
[366748093,1750431039212,-490.0,0.00026804,4]
[366748095,1750431039221,-490.0,0.00026804,4]
[366748098,1750431039231,-490.0,0.00026804,4]
[366748099,1750431039241,-490.0,0.00026804,4]
[366748101,1750431039250,-490.0,0.00026804,4]
[366748104,1750431039260,-225.64403873,0.00026804,4]
[366748105,1750431039270,-490.0,0.00026804,4]
[366748108,1750431039281,-490.0,0.00026804,4]
[366748110,1750431039290,-490.0,0.00026804,4]
[366748112,1750431039300,-490.0,0.00026804,4]
[366748113,1750431039310,-490.0,0.00026804,4]
[366748115,1750431039319,-490.0,0.00026804,4]
[366748117,1750431039329,-490.0,0.00026804,4]
[366748119,1750431039339,-490.0,0.00026804,4]
[366748121,1750431039349,-490.0,0.00026804,4]
[366748123,1750431039359,-490.0,0.00026804,4]
[366748125,1750431039369,-250.0,0.00026804,4]
[366748128,1750431039378,-490.0,0.00026804,4]
[366748129,1750431039388,-490.0,0.00026804,4]
[366748132,1750431039399,-490.0,0.00026804,4]
[366748134,1750431039409,-490.0,0.00026804,4]
[366748136,1750431039419,-490.0,0.00026804,4]
[366748138,1750431039430,-490.0,0.00026804,4]
[366748140,1750431039440,-490.0,0.00026804,4]
[366748142,1750431039452,-490.0,0.00026804,4]
[366748144,1750431039462,-490.0,0.00026804,4]
[366748146,1750431039471,-490.0,0.00026804,4]
[366748148,1750431039481,-490.0,0.00026804,4]
[366748150,1750431039491,-490.0,0.00026804,4]
[366748152,1750431039501,-490.0,0.00026804,4]
[366748154,1750431039510,-490.0,0.00026804,4]
[366748156,1750431039520,-490.0,0.00026804,4]
[366748158,1750431039531,-490.0,0.00026804,4]
[366748160,1750431039541,-490.0,0.00026804,4]
[366748162,1750431039551,-490.0,0.00026804,4]
[366748164,1750431039561,-490.0,0.00026804,4]
[366748166,1750431039572,-490.0,0.00026804,4]
[366748168,1750431039582,-490.0,0.00026804,4]
[366748170,1750431039592,-490.0,0.00026804,4]
[366748172,1750431039602,-490.0,0.00026804,4]
[366748174,1750431039611,-490.0,0.00026804,4]
[366748176,1750431039622,-490.0,0.00026804,4]
[366748178,1750431039632,-490.0,0.00026804,4]
[366748180,1750431039642,-490.0,0.00026804,4]
[366748182,1750431039655,-490.0,0.00026804,4]
[366748184,1750431039665,-490.0,0.00026804,4]
[366748186,1750431039675,-490.0,0.00026804,4]
[366748188,1750431039685,-490.0,0.00026804,4]
[366748190,1750431039695,-490.0,0.00026804,4]
[366748192,1750431039705,-490.0,0.00026804,4]
[366748194,1750431039715,-490.0,0.00026804,4]
[366748196,1750431039725,-490.0,0.00026804,4]
[366748199,1750431039736,-490.0,0.00026804,4]
[366748201,1750431039745,-490.0,0.00026804,4]
[366748203,1750431039755,-490.0,0.00026804,4]
[366748205,1750431039766,-490.0,0.00026804,4]
[366748207,1750431039776,-490.0,0.00026804,4]
[366748209,1750431039787,-490.0,0.00026804,4]
[366748211,1750431039797,-520.57,0.00026804,4]
[366748213,1750431039807,-490.0,0.00026804,4]
[366748215,1750431039816,-490.0,0.00026804,4]
[366748217,1750431039826,-490.0,0.00026804,4]
[366748219,1750431039835,-490.0,0.00026804,4]
[366748221,1750431039845,-545.70731428,0.00026804,4]
[366748223,1750431039856,-490.0,0.00026804,4]
[366748225,1750431039866,-490.0,0.00026804,4]
[366748227,1750431039876,-490.0,0.00026804,4]
[366748229,1750431039886,-490.0,0.00026804,4]
[366748231,1750431039896,-490.0,0.00026804,4]
[366748233,1750431039905,-490.0,0.00026804,4]
[366748235,1750431039915,-490.0,0.00026804,4]
[366748237,1750431039925,-490.0,0.00026804,4]
[366748239,1750431039934,-490.0,0.00026804,4]
[366748241,1750431039944,-490.0,0.00026804,4]
[366748243,1750431039955,-490.0,0.00026804,4]
[366748245,1750431039966,-490.0,0.00026804,4]
[366748247,1750431039976,-506.86156556,0.00026804,4]
[366748249,1750431039986,-490.0,0.00026804,4]
[366748251,1750431039996,-490.0,0.00026804,4]
[366748253,1750431040005,-465.13537077,0.00026804,4]
[366748255,1750431040016,-490.0,0.00026804,4]
[366748257,1750431040026,-490.0,0.00026804,4]
[366748259,1750431040036,-219.85059052,0.00026804,4]
[366748261,1750431040046,-490.0,0.00026804,4]
[366748263,1750431040056,-490.0,0.00026804,4]
[366748265,1750431040066,-490.0,0.00026804,4]
[366748267,1750431040076,-490.0,0.00026804,4]
[366748269,1750431040086,-490.0,0.00026804,4]
[366748271,1750431040096,-490.0,0.00026804,4]
[366748273,1750431040106,-490.0,0.00026804,4]
[366748275,1750431040117,-490.0,0.00026804,4]
[366748277,1750431040127,-490.0,0.00026804,4]
[366748279,1750431040137,-490.0,0.00026804,4]
[366748281,1750431040146,-490.0,0.00026804,4]
[366748283,1750431040156,-490.0,0.00026804,4]
[366748285,1750431040166,-490.0,0.00026804,4]
[366748287,1750431040176,-490.0,0.00026804,4]
[366748289,1750431040186,-490.0,0.00026804,4]
[366748291,1750431040197,-490.0,0.00026804,4]
[366748293,1750431040210,-490.0,0.00026804,4]
[366748295,1750431040220,-490.0,0.00026804,4]
[366748297,1750431040231,-490.0,0.00026804,4]
[366748299,1750431040240,-490.0,0.00026804,4]
[366748301,1750431040250,-490.0,0.00026804,4]
[366748303,1750431040259,-490.0,0.00026804,4]
[366748305,1750431040270,-490.0,0.00026804,4]
[366748308,1750431040280,-494.02495377,0.00026804,4]
[366748310,1750431040290,-490.0,0.00026804,4]
[366748312,1750431040300,-490.0,0.00026804,4]
[366748314,1750431040310,-490.0,0.00026804,4]
[366748316,1750431040321,-490.0,0.00026804,4]
[366748318,1750431040331,-490.0,0.00026804,4]
[366748320,1750431040340,-490.0,0.00026804,4]
[366748322,1750431040350,-601.36,0.00026804,4]
[366748324,1750431040361,-490.0,0.00026804,4]
[366748326,1750431040370,-490.0,0.00026804,4]
[366748328,1750431040381,-490.0,0.00026804,4]
[366748330,1750431040391,-490.0,0.00026804,4]
[366748332,1750431040400,-490.0,0.00026804,4]
[366748334,1750431040410,-490.0,0.00026804,4]
[366748336,1750431040421,-490.0,0.00026804,4]
[366748338,1750431040431,-490.0,0.00026804,4]
[366748340,1750431040441,-490.0,0.00026804,4]
[366748342,1750431040451,-490.0,0.00026804,4]
[366748345,1750431040461,-490.0,0.00026804,4]
[366748347,1750431040471,-651.95,0.00026804,4]
[366748349,1750431040481,-490.0,0.00026804,4]
[366748351,1750431040491,-490.0,0.00026804,4]
[366748353,1750431040501,-490.0,0.00026804,4]
[366748355,1750431040511,-490.0,0.00026804,4]
[366748357,1750431040522,-490.0,0.00026804,4]
[366748359,1750431040532,-490.0,0.00026804,4]
[366748361,1750431040542,-490.0,0.00026804,4]
[366748363,1750431040553,-544.01242447,0.00026804,4]
[366748365,1750431040563,-490.0,0.00026804,4]
[366748366,1750431040573,-976.63,0.00026804,4]
[366748367,1750431040583,-490.0,0.00026804,4]
[366748368,1750431040593,-490.0,0.00026804,4]
[366748369,1750431040602,-490.0,0.00026804,4]
[366748370,1750431040612,-490.0,0.00026804,4]
[366748371,1750431040624,-490.0,0.00026804,4]
[366748372,1750431040634,-490.0,0.00026804,4]
[366748373,1750431040647,-507.2899837,0.00026804,4]
[366748374,1750431040657,-909.87,0.00026804,4]
[366748375,1750431040667,-490.0,0.00026804,4]
[366748376,1750431040678,-490.0,0.00026804,4]
[366748377,1750431040688,-490.0,0.00026804,4]
[366748378,1750431040698,-490.0,0.00026804,4]
[366748379,1750431040709,-788.24,0.00026804,4]
[366748380,1750431040719,-336.06995257,0.00026805,2]
[366748381,1750431040731,-173.93718976,0.00026813,4]
[366748383,1750431040740,-2216.069264,0.00026813,4]
[366748384,1750431040750,-490.0,0.00026813,4]
[366748386,1750431040760,-490.0,0.00026813,4]
[366748389,1750431040770,-490.0,0.00026813,4]
[366748390,1750431040780,-490.0,0.00026813,4]
[366748393,1750431040789,-490.0,0.00026813,4]
[366748395,1750431040799,-425.80423,0.00026813,4]
[366748397,1750431040809,-1868.51,0.00026813,4]
[366748398,1750431040819,-490.0,0.00026813,4]
[366748400,1750431040828,-1239.43,0.00026813,4]
[366748402,1750431040838,-494.32,0.00026813,4]
[366748405,1750431040849,-425.80423,0.00026813,4]
[366748425,1750431041009,-622.22,0.00026813,4]
[366748429,1750431041058,-490.0,0.00026813,4]
[366748431,1750431041068,-1023.84,0.00026813,4]
[366748433,1750431041078,-500.0,0.00026813,4]
[366748435,1750431041088,-1027.02,0.00026813,4]
[366748437,1750431041098,-634.2,0.00026813,4]
[366748439,1750431041108,-1148.8,0.00026813,4]
[366748441,1750431041118,-2014.52,0.00026813,4]
[366748443,1750431041128,-490.0,0.00026813,4]
[366748445,1750431041138,-425.80423,0.00026813,4]
[366748447,1750431041148,-793.81,0.00026813,4]
[366748449,1750431041157,-490.0,0.00026813,4]
[366748451,1750431041167,-490.0,0.00026813,4]
[366748453,1750431041178,-490.0,0.00026813,4]
[366748455,1750431041188,-739.04,0.00026813,4]
[366748457,1750431041198,-500.0,0.00026813,2]
[366748459,1750431041209,-366.81768088,0.00026813,2]
[366748461,1750431041219,-385.34281498,0.00026813,2]
[366748463,1750431041229,-500.0,0.00026813,2]
[366748465,1750431041239,-500.0,0.00026813,2]
[366748467,1750431041249,-339.13265046,0.00026813,2]
[366748469,1750431041259,-500.0,0.00026813,2]
[366748471,1750431041268,-257.18463535,0.00026813,2]
[366748473,1750431041278,-500.0,0.00026813,2]
[366748475,1750431041289,-500.0,0.00026813,2]
[366748477,1750431041300,-422.99715268,0.00026813,2]
[366748479,1750431041311,-500.0,0.00026813,2]
[366748481,1750431041321,-500.0,0.00026813,2]
[366748483,1750431041332,-500.0,0.00026813,2]
[366748485,1750431041342,-500.0,0.00026813,2]
[366748487,1750431041352,-500.0,0.00026813,2]
[366748489,1750431041361,-500.0,0.00026813,2]
[366748491,1750431041371,-500.0,0.00026813,2]
[366748493,1750431041380,-500.0,0.00026813,2]
[366748495,1750431041392,-500.0,0.00026813,2]
[366748497,1750431041402,-500.0,0.00026813,2]
[366748499,1750431041411,-490.0,0.00026813,4]
[366748501,1750431041421,-490.0,0.00026814,4]
[366748503,1750431041432,-680.08,0.00026814,4]
[366748505,1750431041441,-490.0,0.00026814,4]
[366748507,1750431041451,-490.0,0.00026814,4]
[366748510,1750431041461,-490.0,0.00026814,4]
[366748512,1750431041471,-490.0,0.00026814,4]
[366748514,1750431041481,-569.29,0.00026814,4]
[366748516,1750431041491,-595.15,0.00026814,4]
[366748518,1750431041501,-490.0,0.00026814,4]
[366748520,1750431041510,-490.0,0.00026814,4]
[366748522,1750431041520,-619.01,0.00026814,4]
[366748524,1750431041530,-659.58,0.00026814,4]
[366748526,1750431041539,-490.0,0.00026814,4]
[366748528,1750431041550,-490.0,0.00026814,4]
[366748530,1750431041560,-615.79,0.00026814,4]
[366748531,1750431041569,-490.0,0.00026814,4]
[366748534,1750431041580,-535.37,0.00026814,4]
[366748536,1750431041589,-490.0,0.00026814,4]
[366748538,1750431041599,-490.0,0.00026814,4]
[366748540,1750431041608,-490.0,0.00026814,4]
[366748541,1750431041619,-490.0,0.00026814,4]
[366748544,1750431041630,-490.0,0.00026814,4]
[366748546,1750431041640,-490.0,0.00026814,4]
[366748548,1750431041654,-490.0,0.00026814,4]
[366748550,1750431041665,-158.47796059,0.00026814,4]
[366748552,1750431041676,-490.0,0.00026814,4]
[366748554,1750431041686,-490.0,0.00026814,4]
[366748556,1750431041695,-607.32,0.00026814,4]
[366748558,1750431041705,-490.0,0.00026814,4]
[366748560,1750431041715,-305.01034748,0.00026814,4]
[366748562,1750431041725,-567.01,0.00026814,4]
[366748564,1750431041735,-490.0,0.00026814,4]
[366748566,1750431041746,-1032.01,0.00026814,4]
[366748568,1750431041755,-543.01018973,0.00026814,4]
[366748570,1750431041765,-490.0,0.00026814,4]
[366748572,1750431041775,-490.0,0.00026814,4]
[366748574,1750431041785,-677.05,0.00026814,4]
[366748576,1750431041795,-490.0,0.00026814,4]
[366748578,1750431041805,-490.0,0.00026814,4]
[366748580,1750431041814,-490.0,0.00026814,4]
[366748582,1750431041824,-490.0,0.00026814,4]
[366748584,1750431041834,-361.57691335,0.00026814,4]
[366748586,1750431041845,-490.0,0.00026814,4]
[366748588,1750431041854,-490.0,0.00026814,4]
[366748590,1750431041864,-490.0,0.00026814,4]
[366748592,1750431041874,-490.0,0.00026814,4]
[366748594,1750431041883,-490.0,0.00026814,4]
[366748596,1750431041893,-490.0,0.00026814,4]
[366748598,1750431041903,-490.0,0.00026814,4]
[366748600,1750431041913,-490.0,0.00026814,4]
[366748602,1750431041923,-490.0,0.00026814,4]
[366748604,1750431041933,-490.0,0.00026814,4]
[366748606,1750431041943,-490.0,0.00026814,4]
[366748608,1750431041953,-490.0,0.00026814,4]
[366748610,1750431041962,-551.98,0.00026814,4]
[366748612,1750431041972,-490.0,0.00026814,4]
[366748614,1750431041982,-490.0,0.00026814,4]
[366748616,1750431041992,-490.0,0.00026814,4]
[366748618,1750431042002,-858.09,0.00026814,4]
[366748620,1750431042012,-490.0,0.00026814,4]
[366748623,1750431042022,-490.0,0.00026814,4]
[366748624,1750431042032,-490.0,0.00026814,4]
[366748626,1750431042042,-490.0,0.00026814,4]
[366748629,1750431042053,-490.0,0.00026814,4]
[366748631,1750431042062,-490.0,0.00026814,4]
[366748633,1750431042072,-490.0,0.00026814,4]
[366748635,1750431042082,-490.0,0.00026814,4]
[366748637,1750431042092,-490.0,0.00026814,4]
[366748639,1750431042102,-490.0,0.00026814,4]
[366748641,1750431042113,-490.0,0.00026814,4]
[366748643,1750431042123,-490.0,0.00026814,4]
[366748645,1750431042132,-490.0,0.00026814,4]
[366748647,1750431042142,-490.0,0.00026814,4]
[366748649,1750431042152,-945.09,0.00026814,4]
[366748651,1750431042162,-662.35,0.00026814,4]
[366748653,1750431042172,-490.0,0.00026814,4]
[366748655,1750431042181,-490.0,0.00026814,4]
[366748657,1750431042191,-490.0,0.00026814,4]
[366748659,1750431042202,-984.25,0.00026814,4]
[366748661,1750431042212,-490.0,0.00026814,4]
[366748663,1750431042222,-1000.0,0.00026814,2]
[366748665,1750431042232,-490.0,0.00026814,4]
[366748667,1750431042242,-490.0,0.00026814,4]
[366748669,1750431042252,-548.54,0.00026814,4]
[366748671,1750431042262,-581.04,0.00026814,4]
[366748673,1750431042272,-490.0,0.00026814,4]
[366748675,1750431042282,-490.0,0.00026814,4]
[366748677,1750431042292,-624.85,0.00026814,4]
[366748679,1750431042302,-1293.97,0.00026814,4]
[366748681,1750431042312,-490.0,0.00026814,4]
[366748683,1750431042321,-490.0,0.00026814,4]
[366748685,1750431042331,-490.0,0.00026814,4]
[366748687,1750431042340,-490.0,0.00026814,4]
[366748689,1750431042350,-490.0,0.00026814,4]
[366748691,1750431042360,-745.89,0.00026814,4]
[366748693,1750431042370,-496.63,0.00026814,4]
[366748695,1750431042380,-567.71,0.00026814,4]
[366748698,1750431042390,-747.31,0.00026814,4]
[366748700,1750431042400,-490.0,0.00026814,4]
[366748702,1750431042410,-490.0,0.00026814,4]
[366748704,1750431042422,-532.81,0.00026814,4]
[366748706,1750431042432,-490.0,0.00026814,4]
[366748708,1750431042442,-490.0,0.00026814,4]
[366748710,1750431042452,-1503.53,0.00026814,4]
[366748712,1750431042462,-490.0,0.00026814,4]
[366748714,1750431042472,-490.0,0.00026814,4]
[366748716,1750431042482,-490.0,0.00026814,4]
[366748718,1750431042492,-490.0,0.00026814,4]
[366748720,1750431042501,-490.0,0.00026814,4]
[366748722,1750431042511,-490.0,0.00026814,4]
[366748724,1750431042520,-490.0,0.00026814,4]
[366748726,1750431042530,-1337.41,0.00026814,4]
[366748729,1750431042540,-11189.71,0.00026814,4]
[366748732,1750431042549,-690.26,0.00026814,4]
[366748735,1750431042559,-490.0,0.00026814,4]
[366748737,1750431042569,-535.64,0.00026814,4]
[366748739,1750431042578,-679.53,0.00026814,4]
[366748741,1750431042587,-1980.98,0.00026814,4]
[366748743,1750431042597,-595.55,0.00026814,4]
[366748745,1750431042606,-490.0,0.00026814,4]
[366748747,1750431042616,-1039.65,0.00026814,4]
[366748749,1750431042626,-490.0,0.00026814,4]
[366748751,1750431042635,-490.0,0.00026814,4]
[366748753,1750431042647,-467.69629334,0.00026814,4]